[Event "*** SCC Grand Prix: Titled Tuesday Blitz"]
[Site "Chess.com"]
[Date "2020.06.09"]
[Round "1"]
[White "WinstonSilvakov"]
[Black "Chessmatus"]
[Result "1-0"]
[WhiteElo "2093"]
[BlackElo "2491"]
[TimeControl "180+1"]
[EndTime "9:08:07 PDT"]
[Termination "WinstonSilvakov won by checkmate"]

1. d4 {[%clk 0:02:59.7]} 1... Nf6 {[%clk 0:02:55.9]} 2. e3 {[%clk 0:02:59.2]}
2... g6 {[%clk 0:02:54.2]} 3. Bd3 {[%clk 0:02:57.4]} 3... d5 {[%clk 0:02:50.2]}
4. Nd2 {[%clk 0:02:55.5]} 4... Bg7 {[%clk 0:02:50.2]} 5. f4 {[%clk 0:02:49.2]}
5... O-O {[%clk 0:02:45.4]} 6. Ngf3 {[%clk 0:02:48.9]} 6... c5 {[%clk
0:02:43.8]} 7. c3 {[%clk 0:02:47.6]} 7... Nc6 {[%clk 0:02:34.4]} 8. O-O {[%clk
0:02:45]} 8... Rb8 {[%clk 0:02:25.7]} 9. Ne5 {[%clk 0:02:43.9]} 9... Qc7 {[%clk
0:02:08.3]} 10. Qf3 {[%clk 0:02:39.8]} 10... b5 {[%clk 0:02:06]} 11. h3 {[%clk
0:02:22.4]} 11... b4 {[%clk 0:01:29.6]} 12. g4 {[%clk 0:02:15]} 12... bxc3
{[%clk 0:01:28.4]} 13. bxc3 {[%clk 0:02:13.4]} 13... Bb7 {[%clk 0:01:03.2]} 14.
Ba3 {[%clk 0:02:06.9]} 14... Nxe5 {[%clk 0:00:57.6]} 15. fxe5 {[%clk 0:01:59.7]}
15... Nd7 {[%clk 0:00:58.5]} 16. Rac1 {[%clk 0:00:39.4]} 16... Qa5 {[%clk
0:00:54.6]} 17. Nb1 {[%clk 0:00:39.5]} 17... Ba8 {[%clk 0:00:44]} 18. h4 {[%clk
0:00:31.9]} 18... Rxb1 {[%clk 0:00:41.3]} 19. Bxb1 {[%clk 0:00:24.3]} 19... Qxa3
{[%clk 0:00:41.8]} 20. h5 {[%clk 0:00:20.4]} 20... Qa6 {[%clk 0:00:38.2]} 21.
hxg6 {[%clk 0:00:20.9]} 21... fxg6 {[%clk 0:00:35.5]} 22. Qh3 {[%clk 0:00:20.1]}
22... Qe6 {[%clk 0:00:35.2]} 23. Rxf8+ {[%clk 0:00:16.3]} 23... Nxf8 {[%clk
0:00:33.5]} 24. Rf1 {[%clk 0:00:16.8]} 24... Bc6 {[%clk 0:00:32.2]} 25. Qf3
{[%clk 0:00:16.9]} 25... Bd7 {[%clk 0:00:29.4]} 26. g5 {[%clk 0:00:15.3]} 26...
Bc8 {[%clk 0:00:20.3]} 27. e4 {[%clk 0:00:15.5]} 27... dxe4 {[%clk 0:00:19.4]}
28. Bxe4 {[%clk 0:00:14.1]} 28... Kh8 {[%clk 0:00:16.6]} 29. Bd5 {[%clk
0:00:13.2]} 29... Qg4+ {[%clk 0:00:16.8]} 30. Qxg4 {[%clk 0:00:13.2]} 30... Bxg4
{[%clk 0:00:17.7]} 31. Rf7 {[%clk 0:00:13.4]} 31... cxd4 {[%clk 0:00:16.9]} 32.
cxd4 {[%clk 0:00:12.4]} 32... Be6 {[%clk 0:00:17.2]} 33. Bxe6 {[%clk 0:00:11.5]}
33... Nxe6 {[%clk 0:00:17.2]} 34. Rxe7 {[%clk 0:00:12]} 34... Nxd4 {[%clk
0:00:15.6]} 35. Rxa7 {[%clk 0:00:12.9]} 35... Bxe5 {[%clk 0:00:15.2]} 36. Ra8+
{[%clk 0:00:13.8]} 36... Kg7 {[%clk 0:00:15]} 37. Kg2 {[%clk 0:00:13.2]} 37...
Ne6 {[%clk 0:00:14.6]} 38. a4 {[%clk 0:00:11.5]} 38... Nxg5 {[%clk 0:00:14.7]}
39. a5 {[%clk 0:00:11.7]} 39... Ne6 {[%clk 0:00:13.8]} 40. a6 {[%clk 0:00:11.8]}
40... Nc7 {[%clk 0:00:14.2]} 41. Ra7 {[%clk 0:00:11.3]} 41... Kf6 {[%clk
0:00:11.9]} 42. Rxc7 {[%clk 0:00:10.1]} 42... Bxc7 {[%clk 0:00:11.3]} 43. a7
{[%clk 0:00:11]} 43... Be5 {[%clk 0:00:11.7]} 44. a8=Q {[%clk 0:00:10.9]} 44...
Kf5 {[%clk 0:00:12.6]} 45. Qc6 {[%clk 0:00:10.8]} 45... h5 {[%clk 0:00:12.5]}
46. Qd7+ {[%clk 0:00:10.7]} 46... Kg5 {[%clk 0:00:12.6]} 47. Qf7 {[%clk
0:00:10.4]} 47... Bf6 {[%clk 0:00:11.9]} 48. Kh3 {[%clk 0:00:10.1]} 48... Kf5
{[%clk 0:00:12.2]} 49. Qd7+ {[%clk 0:00:10.1]} 49... Kg5 {[%clk 0:00:12.3]} 50.
Qd5+ {[%clk 0:00:10.2]} 50... Kh6 {[%clk 0:00:12.8]} 51. Qe6 {[%clk 0:00:10.7]}
51... Kg5 {[%clk 0:00:13]} 52. Qe3+ {[%clk 0:00:10.8]} 52... Kf5 {[%clk
0:00:13]} 53. Qf3+ {[%clk 0:00:10.5]} 53... Kg5 {[%clk 0:00:13.4]} 54. Qe4
{[%clk 0:00:10.6]} 54... Bg7 {[%clk 0:00:12.4]} 55. Kg3 {[%clk 0:00:07.2]} 55...
Bf6 {[%clk 0:00:12.4]} 56. Qf4# {[%clk 0:00:07]} 1-0

[Event "*** SCC Grand Prix: Titled Tuesday Blitz"]
[Site "Chess.com"]
[Date "2020.06.09"]
[Round "1"]
[White "chessmaugli"]
[Black "DrKozerov"]
[Result "1-0"]
[WhiteElo "2401"]
[BlackElo "2591"]
[TimeControl "180+1"]
[EndTime "9:08:08 PDT"]
[Termination "chessmaugli won by resignation"]

1. e4 {[%clk 0:02:55.6]} 1... c5 {[%clk 0:02:59.2]} 2. Nf3 {[%clk 0:02:55.1]}
2... Nc6 {[%clk 0:02:58.3]} 3. Bb5 {[%clk 0:02:54.5]} 3... g6 {[%clk 0:02:55.2]}
4. Bxc6 {[%clk 0:02:54.7]} 4... dxc6 {[%clk 0:02:55.1]} 5. d3 {[%clk 0:02:54.2]}
5... Bg7 {[%clk 0:02:54.2]} 6. h3 {[%clk 0:02:54.5]} 6... Qc7 {[%clk 0:02:52.8]}
7. O-O {[%clk 0:02:52.4]} 7... e5 {[%clk 0:02:41.2]} 8. Be3 {[%clk 0:02:50.1]}
8... b6 {[%clk 0:02:40.8]} 9. a4 {[%clk 0:02:48]} 9... a5 {[%clk 0:02:40.5]} 10.
Nbd2 {[%clk 0:02:46.3]} 10... Be6 {[%clk 0:02:40.3]} 11. Nc4 {[%clk 0:02:45]}
11... Bxc4 {[%clk 0:02:40.4]} 12. dxc4 {[%clk 0:02:43.5]} 12... Ne7 {[%clk
0:02:40.6]} 13. Qc1 {[%clk 0:02:38.4]} 13... O-O {[%clk 0:02:34.1]} 14. Bh6
{[%clk 0:02:35.3]} 14... f5 {[%clk 0:02:33.1]} 15. Bxg7 {[%clk 0:02:30.3]} 15...
Kxg7 {[%clk 0:02:31.6]} 16. Ng5 {[%clk 0:02:25.1]} 16... Qc8 {[%clk 0:02:25.2]}
17. Qd2 {[%clk 0:02:19.9]} 17... Rf6 {[%clk 0:02:03.5]} 18. Rad1 {[%clk
0:02:14.7]} 18... h6 {[%clk 0:01:59.7]} 19. Qd7 {[%clk 0:02:08.4]} 19... Qxd7
{[%clk 0:01:53.9]} 20. Rxd7 {[%clk 0:02:06.7]} 20... hxg5 {[%clk 0:01:46.8]} 21.
Rxe7+ {[%clk 0:02:05.5]} 21... Rf7 {[%clk 0:01:47]} 22. Re6 {[%clk 0:01:51.4]}
22... Rf6 {[%clk 0:01:34.6]} 23. Rxe5 {[%clk 0:01:36.5]} 23... Rd8 {[%clk
0:01:33.2]} 24. f3 {[%clk 0:01:24]} 24... Rfd6 {[%clk 0:01:20.6]} 25. exf5
{[%clk 0:01:22]} 25... Kf6 {[%clk 0:01:20.4]} 26. Re2 {[%clk 0:01:16.3]} 26...
gxf5 {[%clk 0:01:20.4]} 27. Rfe1 {[%clk 0:01:15.3]} 27... R8d7 {[%clk
0:01:13.5]} 28. b3 {[%clk 0:01:14.1]} 28... Kg6 {[%clk 0:01:12.8]} 29. Kf2
{[%clk 0:01:13.7]} 29... Kf7 {[%clk 0:01:05.6]} 30. Re5 {[%clk 0:01:10.1]} 30...
Kf6 {[%clk 0:01:05.5]} 31. R1e2 {[%clk 0:01:07.2]} 31... Rf7 {[%clk 0:01:00.8]}
32. g3 {[%clk 0:01:04.1]} 32... Rh7 {[%clk 0:00:57.2]} 33. Kg2 {[%clk
0:01:01.4]} 33... Rc7 {[%clk 0:00:53.7]} 34. g4 {[%clk 0:00:57.2]} 34... fxg4
{[%clk 0:00:51.1]} 35. fxg4 {[%clk 0:00:50.9]} 35... Rd4 {[%clk 0:00:39.7]} 36.
Rf5+ {[%clk 0:00:46.4]} 36... Kg6 {[%clk 0:00:30.5]} 37. Re6+ {[%clk 0:00:45.2]}
37... Kg7 {[%clk 0:00:31.1]} 38. Rxg5+ {[%clk 0:00:44]} 38... Kf7 {[%clk
0:00:31.4]} 39. Rh6 {[%clk 0:00:40.8]} 39... Re7 {[%clk 0:00:27.3]} 40. Rh7+
{[%clk 0:00:36.1]} 40... Ke8 {[%clk 0:00:24.9]} 41. Rxe7+ {[%clk 0:00:36.1]}
41... Kxe7 {[%clk 0:00:25.8]} 42. Re5+ {[%clk 0:00:35.8]} 42... Kf6 {[%clk
0:00:25.3]} 43. Re2 {[%clk 0:00:36.1]} 43... Rd1 {[%clk 0:00:21]} 44. Kg3 {[%clk
0:00:34.9]} 44... Rg1+ {[%clk 0:00:20.5]} 45. Kf3 {[%clk 0:00:34.6]} 45... Rh1
{[%clk 0:00:20.5]} 46. Kg2 {[%clk 0:00:33.9]} 46... Rc1 {[%clk 0:00:20.6]} 47.
h4 {[%clk 0:00:33.2]} 47... Kf7 {[%clk 0:00:19]} 48. Kf3 {[%clk 0:00:32.6]}
48... Kf6 {[%clk 0:00:18.4]} 49. Rf2 {[%clk 0:00:30.4]} 49... Kg6 {[%clk
0:00:18.1]} 50. Kg3 {[%clk 0:00:29.2]} 50... Rg1+ {[%clk 0:00:18.3]} 51. Rg2
{[%clk 0:00:28.1]} 51... Rc1 {[%clk 0:00:16.9]} 52. Kf4 {[%clk 0:00:27.9]} 52...
Rf1+ {[%clk 0:00:16.9]} 53. Ke5 {[%clk 0:00:26.9]} 53... Rf6 {[%clk 0:00:15.3]}
54. g5 {[%clk 0:00:26.1]} 54... Rf8 {[%clk 0:00:12.3]} 55. Kd6 {[%clk
0:00:25.4]} 55... Re8 {[%clk 0:00:08.2]} 56. Kxc6 {[%clk 0:00:24.2]} 56... Re6+
{[%clk 0:00:08.6]} 57. Kd7 {[%clk 0:00:23.8]} 57... Re4 {[%clk 0:00:08.4]} 58.
Kd6 {[%clk 0:00:23]} 58... Rxh4 {[%clk 0:00:07.7]} 59. Kc6 {[%clk 0:00:22.8]}
59... Rd4 {[%clk 0:00:03.6]} 60. Kxb6 {[%clk 0:00:22.6]} 60... Rd2 {[%clk
0:00:04.2]} 61. Rxd2 {[%clk 0:00:20.5]} 1-0

[Event "*** SCC Grand Prix: Titled Tuesday Blitz"]
[Site "Chess.com"]
[Date "2020.06.09"]
[Round "1"]
[White "FrogMist"]
[Black "Uih7I9kOKokUOhjUJ"]
[Result "1-0"]
[WhiteElo "2376"]
[BlackElo "2675"]
[TimeControl "180+1"]
[EndTime "9:08:10 PDT"]
[Termination "FrogMist won by resignation"]

1. e4 {[%clk 0:02:52.1]} 1... e5 {[%clk 0:02:58.7]} 2. Nf3 {[%clk 0:02:51.1]}
2... Nc6 {[%clk 0:02:58.5]} 3. Bb5 {[%clk 0:02:50.4]} 3... f5 {[%clk 0:02:58.4]}
4. Nc3 {[%clk 0:02:46.9]} 4... fxe4 {[%clk 0:02:57.5]} 5. Nxe4 {[%clk
0:02:47.8]} 5... Nf6 {[%clk 0:02:57.1]} 6. Qe2 {[%clk 0:02:37]} 6... d5 {[%clk
0:02:28.2]} 7. Nxf6+ {[%clk 0:02:34.6]} 7... gxf6 {[%clk 0:02:29.1]} 8. d4
{[%clk 0:02:24.8]} 8... e4 {[%clk 0:02:25.5]} 9. Nh4 {[%clk 0:02:19.3]} 9... Be6
{[%clk 0:02:16.9]} 10. O-O {[%clk 0:02:03.5]} 10... Qd7 {[%clk 0:02:13.5]} 11.
f3 {[%clk 0:01:59.4]} 11... O-O-O {[%clk 0:02:05.7]} 12. fxe4 {[%clk 0:01:54.4]}
12... dxe4 {[%clk 0:02:06.6]} 13. c3 {[%clk 0:01:49.3]} 13... f5 {[%clk
0:02:02]} 14. Bxc6 {[%clk 0:01:47.1]} 14... bxc6 {[%clk 0:01:51.2]} 15. Qa6+
{[%clk 0:01:30.2]} 15... Kb8 {[%clk 0:01:50.1]} 16. Be3 {[%clk 0:01:27.6]} 16...
Qd5 {[%clk 0:01:30.2]} 17. b3 {[%clk 0:01:13.4]} 17... Bc8 {[%clk 0:01:13.3]}
18. Qc4 {[%clk 0:00:57.3]} 18... Qxc4 {[%clk 0:00:49]} 19. bxc4 {[%clk
0:00:58.2]} 19... Ba6 {[%clk 0:00:49.2]} 20. Rfb1+ {[%clk 0:00:47.9]} 20... Ka8
{[%clk 0:00:48]} 21. c5 {[%clk 0:00:48.2]} 21... Rd5 {[%clk 0:00:39.6]} 22. g3
{[%clk 0:00:44.7]} 22... Be7 {[%clk 0:00:39]} 23. Ng2 {[%clk 0:00:44.7]} 23...
h5 {[%clk 0:00:38.5]} 24. Nf4 {[%clk 0:00:43.7]} 24... Rd7 {[%clk 0:00:38.6]}
25. h4 {[%clk 0:00:43.5]} 25... Bf6 {[%clk 0:00:36.7]} 26. Kf2 {[%clk
0:00:40.8]} 26... Rg7 {[%clk 0:00:36]} 27. Ne6 {[%clk 0:00:38.9]} 27... Re7
{[%clk 0:00:34.5]} 28. Nf4 {[%clk 0:00:39]} 28... Rg7 {[%clk 0:00:34.1]} 29. Rb4
{[%clk 0:00:36.7]} 29... Rg4 {[%clk 0:00:28]} 30. Rab1 {[%clk 0:00:31.9]} 30...
Be7 {[%clk 0:00:23.1]} 31. Ne6 {[%clk 0:00:30.6]} 31... Bb5 {[%clk 0:00:17]} 32.
a4 {[%clk 0:00:29.9]} 32... Rg6 {[%clk 0:00:15.4]} 33. Nf4 {[%clk 0:00:28]}
33... Rg4 {[%clk 0:00:15.3]} 34. axb5 {[%clk 0:00:28.1]} 34... cxb5 {[%clk
0:00:16.2]} 35. Rxb5 {[%clk 0:00:28.2]} 35... c6 {[%clk 0:00:16.7]} 36. Rb7
{[%clk 0:00:27.7]} 36... Bxh4 {[%clk 0:00:16.8]} 37. gxh4 {[%clk 0:00:27.1]}
37... Rhg8 {[%clk 0:00:17.2]} 38. Rf7 {[%clk 0:00:21.8]} 38... Rxh4 {[%clk
0:00:16.3]} 39. Rg1 {[%clk 0:00:14.1]} 39... Rh2+ {[%clk 0:00:15.7]} 40. Rg2
{[%clk 0:00:14.4]} 40... Rgxg2+ {[%clk 0:00:14]} 41. Nxg2 {[%clk 0:00:15.3]}
41... h4 {[%clk 0:00:14]} 42. Bf4 {[%clk 0:00:15.2]} 42... Rh3 {[%clk
0:00:14.4]} 43. Ne3 {[%clk 0:00:14.1]} 43... Rf3+ {[%clk 0:00:14.5]} 44. Kg2
{[%clk 0:00:13.7]} 44... h3+ {[%clk 0:00:14.8]} 45. Kh2 {[%clk 0:00:13.3]} 45...
Rxf4 {[%clk 0:00:14.5]} 46. Rxf5 {[%clk 0:00:14.1]} 46... Rf3 {[%clk 0:00:13.3]}
47. Rxf3 {[%clk 0:00:14.1]} 47... exf3 {[%clk 0:00:14.2]} 48. Kxh3 {[%clk
0:00:14.7]} 48... a5 {[%clk 0:00:14.6]} 49. Nc4 {[%clk 0:00:14.9]} 49... f2
{[%clk 0:00:14.4]} 50. Kg2 {[%clk 0:00:15]} 50... Ka7 {[%clk 0:00:15]} 51. Kxf2
{[%clk 0:00:14.6]} 51... a4 {[%clk 0:00:15.9]} 52. Na3 {[%clk 0:00:14.6]} 52...
Kb7 {[%clk 0:00:16.1]} 53. Ke3 {[%clk 0:00:15.5]} 53... Kc7 {[%clk 0:00:17]} 54.
Kd3 {[%clk 0:00:16.4]} 54... Kd7 {[%clk 0:00:17.9]} 55. Kc4 {[%clk 0:00:17]}
55... Ke6 {[%clk 0:00:18.8]} 56. Kb4 {[%clk 0:00:17.6]} 56... Kd5 {[%clk
0:00:19.7]} 57. Kxa4 {[%clk 0:00:17.4]} 57... Ke4 {[%clk 0:00:20.6]} 58. Kb4
{[%clk 0:00:17.3]} 58... Kd5 {[%clk 0:00:21.5]} 59. Nb1 {[%clk 0:00:16.4]} 59...
Ke4 {[%clk 0:00:22.4]} 60. Nd2+ {[%clk 0:00:16.5]} 60... Kd3 {[%clk 0:00:23.3]}
61. Nc4 {[%clk 0:00:17]} 61... Ke4 {[%clk 0:00:23.7]} 62. Ne5 {[%clk 0:00:17.8]}
62... Kd5 {[%clk 0:00:24.5]} 63. Ka5 {[%clk 0:00:17.4]} 63... Ke6 {[%clk
0:00:24.6]} 64. Nxc6 {[%clk 0:00:17.9]} 64... Kd7 {[%clk 0:00:25.5]} 65. Ne5+
{[%clk 0:00:18.4]} 65... Kc7 {[%clk 0:00:26.4]} 66. Kb5 {[%clk 0:00:19]} 66...
Kb7 {[%clk 0:00:27.3]} 67. c6+ {[%clk 0:00:19.5]} 67... Ka8 {[%clk 0:00:28.2]}
68. Kc5 {[%clk 0:00:20.3]} 68... Ka7 {[%clk 0:00:28.9]} 69. Kd6 {[%clk
0:00:20.4]} 69... Ka6 {[%clk 0:00:29.8]} 70. c7 {[%clk 0:00:20.6]} 70... Ka7
{[%clk 0:00:30.7]} 71. c8=Q {[%clk 0:00:20.7]} 71... Kb6 {[%clk 0:00:31.6]} 72.
Qc5+ {[%clk 0:00:20.8]} 72... Kb7 {[%clk 0:00:31.6]} 73. Qb5+ {[%clk 0:00:21]}
73... Ka8 {[%clk 0:00:32.5]} 74. Qa5+ {[%clk 0:00:19.5]} 1-0

[Event "*** SCC Grand Prix: Titled Tuesday Blitz"]
[Site "Chess.com"]
[Date "2020.06.09"]
[Round "1"]
[White "BogdanBelyakov89"]
[Black "snap_man"]
[Result "1-0"]
[WhiteElo "2612"]
[BlackElo "2293"]
[TimeControl "180+1"]
[EndTime "9:08:10 PDT"]
[Termination "BogdanBelyakov89 won by checkmate"]

1. e4 {[%clk 0:03:00.9]} 1... c6 {[%clk 0:02:58.7]} 2. d3 {[%clk 0:03:00.8]}
2... d5 {[%clk 0:02:58.3]} 3. Nf3 {[%clk 0:02:58]} 3... dxe4 {[%clk 0:02:58.3]}
4. dxe4 {[%clk 0:02:57.6]} 4... Qxd1+ {[%clk 0:02:59.2]} 5. Kxd1 {[%clk
0:02:58.5]} 5... Nd7 {[%clk 0:02:56.6]} 6. c3 {[%clk 0:02:55.7]} 6... g6 {[%clk
0:02:56.3]} 7. Bd3 {[%clk 0:02:55.2]} 7... Bg7 {[%clk 0:02:56]} 8. Be3 {[%clk
0:02:50]} 8... e5 {[%clk 0:02:34.9]} 9. Ke2 {[%clk 0:02:48.2]} 9... Ne7 {[%clk
0:02:34.8]} 10. h4 {[%clk 0:02:43.5]} 10... f5 {[%clk 0:02:31.8]} 11. h5 {[%clk
0:02:37.4]} 11... f4 {[%clk 0:02:21.5]} 12. Bd2 {[%clk 0:02:33.6]} 12... Nc5
{[%clk 0:02:20]} 13. Na3 {[%clk 0:02:11.1]} 13... Nxd3 {[%clk 0:02:07.6]} 14.
Kxd3 {[%clk 0:02:12]} 14... b6 {[%clk 0:02:07.9]} 15. Kc2 {[%clk 0:02:04.4]}
15... Ba6 {[%clk 0:02:07.7]} 16. Ng5 {[%clk 0:01:58]} 16... Bf6 {[%clk
0:01:45.8]} 17. Nf3 {[%clk 0:01:23.4]} 17... Rd8 {[%clk 0:01:09.5]} 18. c4
{[%clk 0:01:15.8]} 18... g5 {[%clk 0:01:07.8]} 19. Bc3 {[%clk 0:01:11.6]} 19...
b5 {[%clk 0:00:49.8]} 20. Rad1 {[%clk 0:00:52.1]} 20... O-O {[%clk 0:00:38.7]}
21. b3 {[%clk 0:00:43]} 21... bxc4 {[%clk 0:00:25.8]} 22. Nxc4 {[%clk
0:00:43.9]} 22... Bxc4 {[%clk 0:00:25.7]} 23. bxc4 {[%clk 0:00:44.4]} 23... c5
{[%clk 0:00:26.3]} 24. Bxe5 {[%clk 0:00:38.1]} 24... Rxd1 {[%clk 0:00:23]} 25.
Rxd1 {[%clk 0:00:36.9]} 25... Nc6 {[%clk 0:00:23.6]} 26. Bxf6 {[%clk 0:00:26.2]}
26... Rxf6 {[%clk 0:00:23.8]} 27. Kc3 {[%clk 0:00:22.7]} 27... g4 {[%clk
0:00:23]} 28. Nh2 {[%clk 0:00:22.5]} 28... g3 {[%clk 0:00:21.9]} 29. fxg3 {[%clk
0:00:20.6]} 29... fxg3 {[%clk 0:00:22.6]} 30. Nf3 {[%clk 0:00:21.5]} 30... Nb4
{[%clk 0:00:17.7]} 31. a3 {[%clk 0:00:21]} 31... Nc6 {[%clk 0:00:17.8]} 32. Rd5
{[%clk 0:00:20.6]} 32... h6 {[%clk 0:00:17.2]} 33. Rxc5 {[%clk 0:00:20.3]} 33...
Rxf3+ {[%clk 0:00:15.5]} 34. gxf3 {[%clk 0:00:19.8]} 34... Nd4 {[%clk
0:00:12.7]} 35. Rc8+ {[%clk 0:00:09.1]} 35... Kg7 {[%clk 0:00:12.5]} 36. Rc7+
{[%clk 0:00:09.2]} 36... Kg8 {[%clk 0:00:12.8]} 37. Rb7 {[%clk 0:00:06.8]} 37...
g2 {[%clk 0:00:12.3]} 38. Rb1 {[%clk 0:00:06.8]} 38... g1=Q {[%clk 0:00:11]} 39.
Rxg1+ {[%clk 0:00:06.2]} 39... Kf7 {[%clk 0:00:10.5]} 40. Kxd4 {[%clk
0:00:05.9]} 40... Kf6 {[%clk 0:00:09.9]} 41. Rg6+ {[%clk 0:00:05.9]} 41... Kf7
{[%clk 0:00:10.4]} 42. Rxh6 {[%clk 0:00:06.5]} 42... Kg7 {[%clk 0:00:11]} 43.
Ra6 {[%clk 0:00:07.4]} 43... Kf7 {[%clk 0:00:11.4]} 44. c5 {[%clk 0:00:08.3]}
44... Kg7 {[%clk 0:00:11.7]} 45. Kd5 {[%clk 0:00:09.2]} 45... Kh7 {[%clk
0:00:11.2]} 46. f4 {[%clk 0:00:10.1]} 46... Kg7 {[%clk 0:00:11.4]} 47. f5 {[%clk
0:00:11]} 47... Kh7 {[%clk 0:00:11.9]} 48. e5 {[%clk 0:00:11.9]} 48... Kg7
{[%clk 0:00:12.3]} 49. Rxa7+ {[%clk 0:00:12.8]} 49... Kh6 {[%clk 0:00:12]} 50.
f6 {[%clk 0:00:13]} 50... Kxh5 {[%clk 0:00:12.4]} 51. f7 {[%clk 0:00:13.5]}
51... Kg4 {[%clk 0:00:13]} 52. f8=Q {[%clk 0:00:13.7]} 52... Kg5 {[%clk
0:00:13]} 53. Rg7+ {[%clk 0:00:13.9]} 53... Kh5 {[%clk 0:00:13.3]} 54. Qh8#
{[%clk 0:00:14.8]} 1-0

[Event "*** SCC Grand Prix: Titled Tuesday Blitz"]
[Site "Chess.com"]
[Date "2020.06.09"]
[Round "1"]
[White "AliKa2810"]
[Black "Quattroporte300"]
[Result "1-0"]
[WhiteElo "2585"]
[BlackElo "2245"]
[TimeControl "180+1"]
[EndTime "9:08:10 PDT"]
[Termination "AliKa2810 won by checkmate"]

1. d4 {[%clk 0:03:00.9]} 1... Nf6 {[%clk 0:02:58.7]} 2. c4 {[%clk 0:03:01.1]}
2... e6 {[%clk 0:02:55.2]} 3. Nf3 {[%clk 0:02:59.1]} 3... d5 {[%clk 0:02:54.8]}
4. Nc3 {[%clk 0:02:58.6]} 4... c6 {[%clk 0:02:55]} 5. Bg5 {[%clk 0:02:58.3]}
5... Nbd7 {[%clk 0:02:53.3]} 6. e3 {[%clk 0:02:57.2]} 6... Qa5 {[%clk
0:02:52.7]} 7. Nd2 {[%clk 0:02:52.3]} 7... Bb4 {[%clk 0:02:51.1]} 8. Qc2 {[%clk
0:02:52.1]} 8... O-O {[%clk 0:02:49.9]} 9. Be2 {[%clk 0:02:52.2]} 9... c5 {[%clk
0:02:47.9]} 10. O-O {[%clk 0:02:18.1]} 10... cxd4 {[%clk 0:02:44.3]} 11. exd4
{[%clk 0:02:09]} 11... dxc4 {[%clk 0:02:41.7]} 12. Bh4 {[%clk 0:02:08.6]} 12...
Bxc3 {[%clk 0:02:08.8]} 13. bxc3 {[%clk 0:02:08.3]} 13... Nd5 {[%clk 0:02:07]}
14. Rfc1 {[%clk 0:01:57.7]} 14... N7b6 {[%clk 0:01:52.9]} 15. Nxc4 {[%clk
0:01:55.9]} 15... Nxc4 {[%clk 0:01:52.7]} 16. Bxc4 {[%clk 0:01:56.8]} 16... Bd7
{[%clk 0:01:50.8]} 17. Bd3 {[%clk 0:01:56.6]} 17... h6 {[%clk 0:01:48.6]} 18.
Qb2 {[%clk 0:01:30.1]} 18... b6 {[%clk 0:01:44.8]} 19. c4 {[%clk 0:01:29.3]}
19... Nf4 {[%clk 0:01:34.9]} 20. Bf1 {[%clk 0:01:29.2]} 20... Rac8 {[%clk
0:01:30.8]} 21. Bg3 {[%clk 0:01:24.4]} 21... Qf5 {[%clk 0:01:20.8]} 22. Qa3
{[%clk 0:01:13.8]} 22... a5 {[%clk 0:01:09.5]} 23. Qd6 {[%clk 0:01:13.3]} 23...
e5 {[%clk 0:00:52.4]} 24. dxe5 {[%clk 0:01:05]} 24... Be6 {[%clk 0:00:50.1]} 25.
Qxb6 {[%clk 0:01:02.1]} 25... Nd3 {[%clk 0:00:47.8]} 26. Bxd3 {[%clk 0:00:29.4]}
26... Qxd3 {[%clk 0:00:48]} 27. c5 {[%clk 0:00:30]} 27... Bd5 {[%clk 0:00:41.9]}
28. c6 {[%clk 0:00:30.1]} 28... Qe4 {[%clk 0:00:41.6]} 29. f3 {[%clk 0:00:30.1]}
29... Qe2 {[%clk 0:00:25.8]} 30. c7 {[%clk 0:00:30.2]} 30... Bxa2 {[%clk
0:00:20.6]} 31. Qf2 {[%clk 0:00:24.4]} 31... Qxf2+ {[%clk 0:00:13.5]} 32. Kxf2
{[%clk 0:00:25.3]} 32... Be6 {[%clk 0:00:09.5]} 33. Rxa5 {[%clk 0:00:25.6]}
33... Rfe8 {[%clk 0:00:09.4]} 34. f4 {[%clk 0:00:20.3]} 34... Re7 {[%clk
0:00:09.2]} 35. Rac5 {[%clk 0:00:18.9]} 35... g6 {[%clk 0:00:09.7]} 36. Bh4
{[%clk 0:00:18.7]} 36... Rd7 {[%clk 0:00:09.6]} 37. Ke3 {[%clk 0:00:11.4]} 37...
h5 {[%clk 0:00:08.2]} 38. Bf6 {[%clk 0:00:11.4]} 38... Kh7 {[%clk 0:00:08]} 39.
R1c3 {[%clk 0:00:10.5]} 39... Bf5 {[%clk 0:00:08.3]} 40. h3 {[%clk 0:00:06.5]}
40... Be6 {[%clk 0:00:08.5]} 41. Kf3 {[%clk 0:00:06.1]} 41... Bf5 {[%clk
0:00:08.6]} 42. g4 {[%clk 0:00:06.4]} 42... Be6 {[%clk 0:00:07.5]} 43. gxh5
{[%clk 0:00:05.5]} 43... gxh5 {[%clk 0:00:07.9]} 44. Ke4 {[%clk 0:00:06.1]}
44... Rd1 {[%clk 0:00:06]} 45. f5 {[%clk 0:00:05.6]} 45... Re1+ {[%clk
0:00:06.3]} 46. Re3 {[%clk 0:00:05.4]} 46... Bxf5+ {[%clk 0:00:05.7]} 47. Kf4
{[%clk 0:00:04.8]} 47... Rxe3 {[%clk 0:00:06.1]} 48. Kxe3 {[%clk 0:00:05.1]}
48... Bxh3 {[%clk 0:00:07]} 49. Bd8 {[%clk 0:00:03.7]} 49... Kg6 {[%clk
0:00:06.4]} 50. Kf4 {[%clk 0:00:04.1]} 50... Bg4 {[%clk 0:00:05.7]} 51. Rc3
{[%clk 0:00:04.7]} 51... Kh7 {[%clk 0:00:04.7]} 52. Rb3 {[%clk 0:00:04.7]} 52...
Kg6 {[%clk 0:00:04.2]} 53. Rb6+ {[%clk 0:00:05]} 53... Kh7 {[%clk 0:00:04.5]}
54. Kg5 {[%clk 0:00:05.5]} 54... Bf3 {[%clk 0:00:04.4]} 55. Rh6+ {[%clk
0:00:05.4]} 55... Kg7 {[%clk 0:00:04]} 56. Bf6+ {[%clk 0:00:05.8]} 56... Kg8
{[%clk 0:00:04.1]} 57. Rh8# {[%clk 0:00:06.7]} 1-0